[Event "Czech Youth U14 Girls 2024"]
[Site "Kouty nad Desnou"]
[Date "2024.03.14"]
[Round "7.9"]
[White "Strazhnyk, Viktoriia"]
[Black "Krisicova, Neli"]
[Result "1/2-1/2"]
[ECO "C55"]
[WhiteElo "1570"]
[BlackElo "1556"]
[Annotator "NA RC"]
[PlyCount "165"]
[EventDate "2024.03.10"]
[EventType "swiss"]
[EventCountry "CZE"]
[SourceTitle "playchess.com"]
[Source "ChessBase"]
[SourceQuality "1"]
[TimeControl "40/5400+30:1800+30"]

1. e4 {[%emt 0:00:01]} e5 {[%emt 0:00:22]} 2. Nf3 {[%emt 0:00:05]} Nc6 {[%emt 0:00:28]} 3. d4 {[%emt 0:00:06]} exd4 {[%emt 0:00:48]} 4. Bc4 {[%emt 0:00:10]} Nf6 {[%emt 0:00:54]} 5. O-O {[%emt 0:00:15]} d6 {[%emt 0:03:32]} 6. h3 {[%emt 0:09:16]} Be7 {[%emt 0:02:32]} 7. Re1 {[%emt 0:04:15]} O-O {[%emt 0:03:05]} 8. Nxd4 {[%emt 0:01:38]} Bd7 {[%emt 0:08:23]} 9. Nc3 {[%emt 0:03:36]} h6 {[%emt 0:02:55]} 10. Be3 {[%emt 0:00:08]} Nxd4 {[%emt 0:04:29]} 11. Bxd4 {[%emt 0:00:20]} Re8 {[%emt 0:02:08]} 12. Qd2 {[%emt 0:10:56]} Bc6 {[%emt 0:04:48]} 13. Nd5 {[%emt 0:10:51]} Nxd5 {[%emt 0:02:46]} 14. exd5 {[%emt 0:02:53]} Bd7 {[%emt 0:01:20]} 15. Qc3 {[%emt 0:03:35]} Bf8 {[%emt 0:02:32]} 16. Bd3 {[%emt 0:03:12]} Qc8 {[%emt 0:11:34]} 17. Rxe8 {[%emt 0:01:36]} Bxe8 {[%emt 0:00:16]} 18. Re1 {[%emt 0:00:34]} Qd8 {[%emt 0:06:41]} 19. Re3 {[%emt 0:12:12]} g6 {[%emt 0:01:56]} 20. Bf6 {[%emt 0:11:35]} Qd7 {[%emt 0:01:57]} 21. Rg3 {[%emt 0:08:48]} Rc8 {[%emt 0:06:26]} 22. Qb4 {[%emt 0:01:46]} c6 {[%emt 0:02:00]} 23. Qf4 {[%emt 0:02:14]} Kh7 {[%emt 0:03:44]} 24. dxc6 {[%emt 0:00:45]} Rxc6 {[%emt 0:00:27]} 25. Bb5 {[%emt 0:00:29]} a6 {[%emt 0:01:35]} 26. Bxc6 {[%emt 0:00:17]} Qxc6 {[%emt 0:00:09]} 27. Rc3 {[%emt 0:01:16]} Qd7 {[%emt 0:01:16]} 28. Bd4 {[%emt 0:00:47]} Bg7 {[%emt 0:01:43]} 29. Bxg7 {[%emt 0:00:19]} Kxg7 {[%emt 0:00:04]} 30. Qd4+ {[%emt 0:00:10]} Kg8 {[%emt 0:00:15]} 31. Rd3 {[%emt 0:01:35]} Qe6 {[%emt 0:04:38]} 32. Qxd6 {[%emt 0:02:14]} Qe1+ {[%emt 0:00:26]} 33. Kh2 {[%emt 0:00:35]} Qxf2 {[%emt 0:00:26]} 34. Rd2 {[%emt 0:00:38]} Qe3 {[%emt 0:00:28]} 35. Qd4 {[%emt 0:01:17]} Qe6 {[%emt 0:01:00]} 36. a3 {[%emt 0:00:30]} Bc6 {[%emt 0:00:53]} 37. Rf2 {[%emt 0:02:37]} h5 {[%emt 0:02:00]} 38. Qf4 {[%emt 0:01:45]} Qd5 {[%emt 0:02:43]} 39. Rd2 {[%emt 0:00:34]} Qe6 {[%emt 0:00:35]} 40. Rd8+ {[%emt 0:01:08]} Kh7 {[%emt 0:00:24]} 41. Qb8 {[%emt 0:33:31]} Kg7 {[%emt 0:37:14]} 42. Qd6 {[%emt 0:00:00]} Qe2 {[%emt 0:00:00]} 43. Qd2 {[%emt 0:00:00]} Qe5+ {[%emt 0:00:00]} 44. Kg1 {[%emt 0:00:00]} Qe6 {[%emt 0:00:00]} 45. Qd4+ {[%emt 0:00:00]} f6 {[%emt 0:00:00]} 46. Rd6 {[%emt 0:00:00]} Qf5 {[%emt 0:00:00]} 47. Qd2 {[%emt 0:00:00]} Qc5+ {[%emt 0:00:43]} 48. Kh1 {[%emt 0:00:00]} Qf5 {[%emt 0:00:52]} 49. Qd3 {[%emt 0:00:00]} Qe5 {[%emt 0:00:59]} 50. Qd4 {[%emt 0:00:00]} Qg5 {[%emt 0:01:48]} 51. Qd2 {[%emt 0:00:00]} Qg3 {[%emt 0:01:14]} 52. Rd3 {[%emt 0:00:00]} Qc7 {[%emt 0:01:58]} 53. Qe3 {[%emt 0:00:00]} Qf7 {[%emt 0:02:39]} 54. Rd1 {[%emt 0:00:18]} Qc7 {[%emt 0:01:49]} 55. Re1 {[%emt 0:00:36]} Kf7 {[%emt 0:00:52]} 56. Qe6+ {[%emt 0:01:41]} Kg7 {[%emt 0:00:49]} 57. Qe7+ {[%emt 0:00:13]} Qxe7 {[%emt 0:00:06]} 58. Rxe7+ {[%emt 0:00:05]} Kf8 {[%emt 0:00:05]} 59. Re2 {[%emt 0:00:23]} f5 {[%emt 0:00:35]} 60. Kg1 {[%emt 0:00:12]} Kf7 {[%emt 0:00:13]} 61. Kf2 {[%emt 0:00:29]} Kf6 {[%emt 0:00:27]} 62. h4 {[%emt 0:00:33]} Be4 {[%emt 0:00:29]} 63. g3 {[%emt 0:01:10]} Bc6 {[%emt 0:01:03]} 64. Ke3 {[%emt 0:01:58]} Ke5 {[%emt 0:01:43]} 65. Kd2+ {[%emt 0:00:20]} Kd5 {[%emt 0:00:43]} 66. Kc3 {[%emt 0:00:27]} Kd6 {[%emt 0:00:22]} 67. Kb4 {[%emt 0:00:42]} Be4 {[%emt 0:00:37]} 68. Kc4 {[%emt 0:01:09]} Bc6 {[%emt 0:01:14]} 69. Kd4 {[%emt 0:00:21]} Bd5 {[%emt 0:00:11]} 70. c4 {[%emt 0:00:23]} Bc6 {[%emt 0:00:28]} 71. c5+ {[%emt 0:00:40]} Kd7 {[%emt 0:00:09]} 72. Ke5 {[%emt 0:01:19]} Ke7 {[%emt 0:00:12]} 73. Rd2 {[%emt 0:00:15]} Be4 {[%emt 0:00:35]} 74. Rd6 {[%emt 0:01:19]} Kf7 {[%emt 0:00:55]} 75. Rd7+ {[%emt 0:00:11]} Ke8 {[%emt 0:00:36]} 76. Rg7 {[%emt 0:00:27]} Bf3 {[%emt 0:00:16]} 77. Rxg6 {[%emt 0:00:23]} Bg4 {[%emt 0:00:05]} 78. Rb6 {[%emt 0:00:17]} Kd7 {[%emt 0:00:29]} 79. Rxb7+ {[%emt 0:00:21]} Kc6 {[%emt 0:00:05]} 80. Rb6+ {[%emt 0:00:36]} Kxc5 {[%emt 0:00:07]} 81. Rxa6 {[%emt 0:00:06]} Kb5 {[%emt 0:00:20]} 82. Rg6 {[%emt 0:00:20]} Ka4 {[%emt 0:00:35]} 83. Rxg4+ {[%emt 0:00:22]} 1/2-1/2

[Event "Czech Youth U14 Girls 2024"]
[Site "Kouty nad Desnou"]
[Date "2024.03.14"]
[Round "7.10"]
[White "Archlebova, Iva"]
[Black "Archlebova, Eva"]
[Result "1/2-1/2"]
[ECO "C49"]
[WhiteElo "1488"]
[BlackElo "1438"]
[Annotator "NA RC"]
[PlyCount "83"]
[EventDate "2024.03.10"]
[EventType "swiss"]
[EventCountry "CZE"]
[SourceTitle "playchess.com"]
[Source "ChessBase"]
[SourceQuality "1"]
[TimeControl "40/5400+30:1800+30"]

1. e4 {[%emt 0:00:02]} e5 {[%emt 0:00:00]} 2. Nf3 {[%emt 0:00:06]} Nc6 {[%emt 0:00:15]} 3. Nc3 {[%emt 0:00:09]} Nf6 {[%emt 0:00:04]} 4. Bb5 {[%emt 0:00:23]} Bb4 {[%emt 0:00:13]} 5. d3 {[%emt 0:00:06]} d6 {[%emt 0:00:04]} 6. Be3 {[%emt 0:00:14]} O-O {[%emt 0:01:05]} 7. O-O {[%emt 0:00:03]} Bg4 {[%emt 0:04:30]} 8. Bxc6 {[%emt 0:02:23]} bxc6 {[%emt 0:00:47]} 9. Qe2 {[%emt 0:00:29]} Bxc3 {[%emt 0:05:57]} 10. bxc3 {[%emt 0:00:03]} Qe7 {[%emt 0:00:58]} 11. Rab1 {[%emt 0:00:30]} a6 {[%emt 0:00:16]} 12. h3 {[%emt 0:02:17]} Bxf3 {[%emt 0:03:24]} 13. Qxf3 {[%emt 0:00:13]} Rab8 {[%emt 0:00:06]} 14. Rxb8 {[%emt 0:01:18]} Rxb8 {[%emt 0:00:05]} 15. Qe2 {[%emt 0:00:16]} d5 {[%emt 0:01:02]} 16. Bg5 {[%emt 0:00:34]} h6 {[%emt 0:00:51]} 17. Bxf6 {[%emt 0:00:10]} Qxf6 {[%emt 0:01:27]} 18. Rd1 {[%emt 0:00:17]} Rd8 {[%emt 0:03:07]} 19. Rd2 {[%emt 0:01:24]} Qf4 {[%emt 0:01:00]} 20. g3 {[%emt 0:00:53]} Qf6 {[%emt 0:00:29]} 21. Rd1 {[%emt 0:00:12]} dxe4 {[%emt 0:01:53]} 22. dxe4 {[%emt 0:00:11]} Rxd1+ 23. Qxd1 {[%emt 0:00:12]} Qe6 {[%emt 0:01:16]} 24. Qd8+ {[%emt 0:01:06]} Kh7 {[%emt 0:00:02]} 25. Qxc7 {[%emt 0:00:11]} Qxa2 {[%emt 0:00:04]} 26. Qxc6 {[%emt 0:00:13]} Qxc2 {[%emt 0:00:04]} 27. Qxa6 {[%emt 0:00:11]} Qxe4 {[%emt 0:00:06]} 28. Qd6 {[%emt 0:01:51]} Qf5 {[%emt 0:01:59]} 29. c4 {[%emt 0:00:31]} Qxh3 {[%emt 0:00:04]} 30. Qxe5 {[%emt 0:01:06]} Kh8 {[%emt 0:00:39]} 31. Qe8+ {[%emt 0:01:02]} Kh7 {[%emt 0:00:06]} 32. c5 {[%emt 0:01:59]} Qf5 {[%emt 0:00:21]} 33. Qf8 Qc2 {[%emt 0:04:49]} 34. Qxf7 {[%emt 0:01:28]} Qxc5 {[%emt 0:00:35]} 35. Qf3 {[%emt 0:00:57]} Qd6 {[%emt 0:00:18]} 36. Qf4 {[%emt 0:01:05]} Qxf4 {[%emt 0:01:01]} 37. gxf4 {[%emt 0:00:09]} g5 {[%emt 0:00:12]} 38. fxg5 {[%emt 0:00:10]} hxg5 {[%emt 0:00:02]} 39. Kg2 {[%emt 0:00:16]} Kg6 {[%emt 0:00:01]} 40. Kg3 {[%emt 0:00:34]} Kf6 {[%emt 0:00:18]} 41. f4 {[%emt 0:30:23]} gxf4+ {[%emt 0:30:13]} 42. Kxf4 {[%emt 0:00:12]} 1/2-1/2

[Event "Czech Youth U14 Girls 2024"]
[Site "Kouty nad Desnou"]
[Date "2024.03.14"]
[Round "7.11"]
[White "Spetlova, Stella"]
[Black "Peskova, Sara"]
[Result "1/2-1/2"]
[ECO "C44"]
[WhiteElo "1405"]
[BlackElo "1481"]
[Annotator "NA RC"]
[PlyCount "82"]
[EventDate "2024.03.10"]
[EventType "swiss"]
[EventCountry "CZE"]
[SourceTitle "playchess.com"]
[Source "ChessBase"]
[SourceQuality "1"]
[TimeControl "40/5400+30:1800+30"]

1. e4 e5 {[%emt 0:00:00]} 2. Nf3 {[%emt 0:01:06]} Nc6 {[%emt 0:00:00]} 3. d4 {[%emt 0:02:11]} exd4 4. Nxd4 {[%emt 0:02:08]} Nf6 {[%emt 0:00:41]} 5. Nc3 Bb4 {[%emt 0:00:14]} 6. Nxc6 {[%emt 0:04:43]} bxc6 7. Bd3 {[%emt 0:02:21]} O-O {[%emt 0:01:22]} 8. Bg5 d5 {[%emt 0:02:06]} 9. exd5 {[%emt 0:05:44]} cxd5 {[%emt 0:02:24]} 10. O-O c6 11. a3 {[%emt 0:05:15]} Be7 {[%emt 0:10:22]} 12. Re1 {[%emt 0:03:12]} Bg4 {[%emt 0:07:39]} 13. Be2 {[%emt 0:02:51]} Bf5 {[%emt 0:03:38]} 14. Bf3 {[%emt 0:03:13]} Re8 {[%emt 0:06:20]} 15. Qd2 {[%emt 0:02:01]} Nd7 16. Be3 Ne5 {[%emt 0:12:01]} 17. Be2 {[%emt 0:05:16]} Bf6 {[%emt 0:08:22]} 18. Bd4 {[%emt 0:03:56]} Ng6 {[%emt 0:04:28]} 19. Bxf6 {[%emt 0:02:45]} Qxf6 {[%emt 0:00:32]} 20. Bd3 {[%emt 0:00:49]} Qd4 {[%emt 0:05:23]} 21. Ne2 {[%emt 0:02:57]} Qf6 {[%emt 0:04:13]} 22. Bxf5 {[%emt 0:01:02]} Qxf5 {[%emt 0:00:48]} 23. Ng3 {[%emt 0:01:27]} Qf6 {[%emt 0:01:13]} 24. c3 {[%emt 0:01:37]} Ne5 {[%emt 0:06:26]} 25. Qd4 {[%emt 0:05:08]} h6 {[%emt 0:10:25]} 26. h3 {[%emt 0:01:50]} Nd7 {[%emt 0:07:46]} 27. Qxf6 Nxf6 {[%emt 0:00:04]} 28. b4 {[%emt 0:01:42]} Re6 {[%emt 0:01:51]} 29. Rxe6 {[%emt 0:00:23]} fxe6 {[%emt 0:00:05]} 30. f3 {[%emt 0:00:24]} a5 {[%emt 0:00:55]} 31. Rc1 {[%emt 0:00:36]} Kf7 {[%emt 0:00:22]} 32. Kf2 {[%emt 0:00:11]} Ke7 {[%emt 0:01:02]} 33. Ne2 {[%emt 0:00:21]} Kd6 {[%emt 0:00:37]} 34. Nd4 {[%emt 0:00:15]} Nh5 {[%emt 0:01:16]} 35. g3 {[%emt 0:00:50]} g6 {[%emt 0:00:22]} 36. Re1 {[%emt 0:01:05]} e5 {[%emt 0:02:17]} 37. Nxc6 {[%emt 0:03:59]} Kxc6 {[%emt 0:00:01]} 38. Rxe5 {[%emt 0:00:14]} Kd6 {[%emt 0:00:20]} 39. Re2 {[%emt 0:00:44]} axb4 40. axb4 {[%emt 0:00:43]} Ra3 {[%emt 0:00:38]} 41. Rc2 {[%emt 0:30:41]} Ke5 1/2-1/2

[Event "Czech Youth U14 Girls 2024"]
[Site "Kouty nad Desnou"]
[Date "2024.03.14"]
[Round "7.12"]
[White "Sochorova, Valentyna"]
[Black "Pruskova, Justyna"]
[Result "1-0"]
[ECO "C55"]
[WhiteElo "1485"]
[BlackElo "1471"]
[Annotator "NA RC"]
[PlyCount "63"]
[EventDate "2024.03.10"]
[EventType "swiss"]
[EventCountry "CZE"]
[SourceTitle "playchess.com"]
[Source "ChessBase"]
[SourceQuality "1"]
[TimeControl "40/5400+30:1800+30"]

1. e4 {[%emt 0:00:03]} e5 {[%emt 0:00:14]} 2. Nf3 {[%emt 0:00:19]} Nc6 {[%emt 0:00:12]} 3. d4 {[%emt 0:00:07]} exd4 {[%emt 0:00:12]} 4. Bc4 {[%emt 0:00:12]} Nf6 {[%emt 0:00:11]} 5. O-O {[%emt 0:00:18]} Bc5 {[%emt 0:01:32]} 6. e5 {[%emt 0:00:30]} d5 {[%emt 0:00:21]} 7. exf6 {[%emt 0:00:31]} dxc4 {[%emt 0:00:38]} 8. fxg7 {[%emt 0:00:22]} Rg8 {[%emt 0:00:22]} 9. Bg5 {[%emt 0:00:30]} Qd5 {[%emt 0:02:28]} 10. Nc3 {[%emt 0:10:49]} Qf5 {[%emt 0:02:32]} 11. Re1+ {[%emt 0:13:45]} Be6 {[%emt 0:00:15]} 12. Ne4 {[%emt 0:03:50]} Be7 {[%emt 0:02:14]} 13. Nh4 {[%emt 0:12:07]} Qd5 {[%emt 0:02:40]} 14. Nf6+ {[%emt 0:16:03]} Bxf6 {[%emt 0:00:29]} 15. Bxf6 {[%emt 0:00:09]} Ne7 {[%emt 0:00:36]} 16. Re5 {[%emt 0:17:32]} Qd6 {[%emt 0:02:32]} 17. Qh5 {[%emt 0:01:53]} O-O-O {[%emt 0:02:12]} 18. Qxh7 {[%emt 0:12:29]} Rde8 {[%emt 0:02:35]} 19. Rae1 {[%emt 0:03:58]} d3 {[%emt 0:04:29]} 20. Bxe7 {[%emt 0:02:28]} Qxe7 {[%emt 0:01:19]} 21. cxd3 {[%emt 0:01:28]} cxd3 {[%emt 0:00:23]} 22. Nf3 {[%emt 0:00:19]} Qf6 {[%emt 0:01:50]} 23. Qxd3 {[%emt 0:01:25]} Qxg7 {[%emt 0:02:15]} 24. g3 {[%emt 0:00:43]} Qf6 {[%emt 0:02:10]} 25. Qe3 {[%emt 0:00:29]} b6 {[%emt 0:01:37]} 26. Qa3 {[%emt 0:00:35]} Kb7 {[%emt 0:00:40]} 27. Qd3 {[%emt 0:00:31]} Rd8 {[%emt 0:01:24]} 28. Qe4+ {[%emt 0:00:21]} Kb8 {[%emt 0:02:33]} 29. Nd4 {[%emt 0:00:20]} Bxa2 {[%emt 0:02:29]} 30. Nc6+ {[%emt 0:00:38]} Ka8 {[%emt 0:03:03]} 31. Nxd8+ {[%emt 0:00:16]} Kb8 {[%emt 0:00:25]} 32. Qb7# {[%emt 0:00:09]} 1-0

[Event "Czech Youth U14 Girls 2024"]
[Site "Kouty nad Desnou"]
[Date "2024.03.14"]
[Round "7.13"]
[White "Vaclavkova, Klara"]
[Black "Myronova, Sofia"]
[Result "0-1"]
[ECO "D50"]
[WhiteElo "1486"]
[BlackElo "1456"]
[Annotator "NA RC"]
[PlyCount "100"]
[EventDate "2024.03.10"]
[EventType "swiss"]
[EventCountry "CZE"]
[SourceTitle "playchess.com"]
[Source "ChessBase"]
[SourceQuality "1"]
[TimeControl "40/5400+30:1800+30"]

1. d4 {[%emt 0:00:01]} d5 {[%emt 0:00:17]} 2. c4 {[%emt 0:00:02]} e6 {[%emt 0:00:20]} 3. Nc3 {[%emt 0:00:06]} Nf6 {[%emt 0:00:27]} 4. Bg5 {[%emt 0:00:10]} c6 {[%emt 0:00:25]} 5. e3 {[%emt 0:00:31]} dxc4 {[%emt 0:00:19]} 6. Bxc4 {[%emt 0:00:08]} b5 {[%emt 0:00:13]} 7. Bd3 {[%emt 0:00:15]} Bb7 {[%emt 0:00:29]} 8. Nf3 {[%emt 0:00:10]} Nbd7 {[%emt 0:01:03]} 9. e4 {[%emt 0:03:23]} Be7 {[%emt 0:00:35]} 10. O-O {[%emt 0:01:10]} a6 {[%emt 0:00:25]} 11. e5 {[%emt 0:02:14]} Nd5 {[%emt 0:00:47]} 12. Bxe7 {[%emt 0:00:49]} Nxe7 {[%emt 0:00:10]} 13. Ng5 {[%emt 0:01:39]} Nf5 {[%emt 0:00:45]} 14. Qg4 {[%emt 0:03:20]} g6 {[%emt 0:04:34]} 15. Bxf5 {[%emt 0:04:50]} exf5 {[%emt 0:00:50]} 16. Qf4 {[%emt 0:01:08]} O-O {[%emt 0:11:00]} 17. Ne2 {[%emt 0:01:42]} Re8 {[%emt 0:04:36]} 18. Ng3 {[%emt 0:01:45]} h6 {[%emt 0:03:31]} 19. Nf3 {[%emt 0:02:31]} Kh7 {[%emt 0:02:57]} 20. h4 {[%emt 0:03:52]} Nb6 {[%emt 0:03:55]} 21. h5 {[%emt 0:02:05]} Nd5 {[%emt 0:00:32]} 22. hxg6+ {[%emt 0:00:14]} fxg6 {[%emt 0:00:25]} 23. Qd2 {[%emt 0:02:12]} Bc8 {[%emt 0:01:24]} 24. Kh2 {[%emt 0:05:47]} Rh8 {[%emt 0:01:07]} 25. Rh1 {[%emt 0:01:15]} Qe8 {[%emt 0:05:08]} 26. Kg1 {[%emt 0:02:44]} Kg7 {[%emt 0:00:49]} 27. Re1 {[%emt 0:06:14]} Be6 {[%emt 0:00:39]} 28. Ne2 {[%emt 0:02:24]} Qf7 {[%emt 0:03:51]} 29. Nc3 {[%emt 0:07:55]} a5 {[%emt 0:06:14]} 30. Nxd5 {[%emt 0:00:31]} Bxd5 {[%emt 0:00:15]} 31. a3 {[%emt 0:03:35]} a4 {[%emt 0:02:51]} 32. Qc3 {[%emt 0:02:41]} Qe6 {[%emt 0:00:53]} 33. Qc5 {[%emt 0:02:46]} Rhd8 {[%emt 0:02:41]} 34. Qc1 {[%emt 0:01:37]} Rh8 {[%emt 0:00:26]} 35. Rh3 {[%emt 0:00:58]} Bxf3 {[%emt 0:06:42]} 36. Rxf3 {[%emt 0:00:15]} Rhf8 {[%emt 0:00:59]} 37. Rd3 {[%emt 0:00:54]} Rad8 {[%emt 0:04:24]} 38. Re2 {[%emt 0:03:32]} Rf7 {[%emt 0:01:32]} 39. Rc2 {[%emt 0:00:58]} Rc7 {[%emt 0:00:55]} 40. Qd2 {[%emt 0:02:38]} Rd5 {[%emt 0:03:36]} 41. Qa5 {[%emt 0:32:05]} Rdd7 {[%emt 0:33:53]} 42. f4 {[%emt 0:01:55]} Qa2 {[%emt 0:02:33]} 43. Rdd2 {[%emt 0:07:24]} Qf7 {[%emt 0:04:38]} 44. Qb6 {[%emt 0:02:36]} Qe7 {[%emt 0:02:07]} 45. Rxc6 {[%emt 0:02:16]} Rxc6 {[%emt 0:01:04]} 46. Qxc6 {[%emt 0:00:09]} Rc7 {[%emt 0:00:17]} 47. Qf3 {[%emt 0:01:00]} Rc1+ {[%emt 0:00:28]} 48. Kh2 {[%emt 0:01:14]} Qh4+ {[%emt 0:00:23]} 49. Qh3 {[%emt 0:00:20]} Qxf4+ {[%emt 0:00:06]} 50. Qg3 {[%emt 0:00:14]} Qxd2 {[%emt 0:00:43]} 0-1

[Event "Czech Youth U14 Girls 2024"]
[Site "Kouty nad Desnou"]
[Date "2024.03.15"]
[Round "8.1"]
[White "Kammova, Katerina"]
[Black "Horkova, Tereza"]
[Result "1-0"]
[ECO "B40"]
[WhiteElo "1781"]
[BlackElo "1845"]
[Annotator "NA COMBH"]
[PlyCount "81"]
[EventDate "2024.03.10"]
[EventType "swiss"]
[EventCountry "CZE"]
[SourceTitle "playchess.com"]
[Source "ChessBase"]
[SourceQuality "1"]
[TimeControl "40/5400+30:1800+30"]

1. e4 {[%emt 0:00:05]} c5 {[%emt 0:00:09]} 2. Nf3 {[%emt 0:01:25]} e6 {[%emt 0:00:32]} 3. d4 {[%emt 0:01:31]} cxd4 {[%emt 0:00:28]} 4. Nxd4 {[%emt 0:00:44]} Nf6 {[%emt 0:00:11]} 5. Nc3 {[%emt 0:01:52]} Nc6 {[%emt 0:00:12]} 6. Nxc6 {[%emt 0:01:23]} bxc6 {[%emt 0:00:15]} 7. e5 {[%emt 0:00:21]} Nd5 {[%emt 0:00:20]} 8. Ne4 {[%emt 0:00:17]} Qc7 {[%emt 0:01:16]} 9. f4 {[%emt 0:00:13]} Qb6 {[%emt 0:02:27]} 10. c4 {[%emt 0:00:45]} Ne3 {[%emt 0:03:50]} 11. Qd3 {[%emt 0:00:38]} Bb4+ {[%emt 0:06:22]} 12. Bd2 {[%emt 0:01:13]} O-O {[%emt 0:03:50]} 13. Rc1 {[%emt 0:01:58]} Nxf1 {[%emt 0:03:37]} 14. Rxf1 {[%emt 0:00:42]} Rb8 {[%emt 0:00:53]} 15. b3 {[%emt 0:05:49]} Bxd2+ {[%emt 0:05:30]} 16. Qxd2 {[%emt 0:01:14]} Qb4 {[%emt 0:07:37]} 17. Qxb4 {[%emt 0:06:24]} Rxb4 {[%emt 0:00:03]} 18. Rd1 {[%emt 0:02:08]} a5 {[%emt 0:02:16]} 19. Nc5 {[%emt 0:02:55]} Rd8 {[%emt 0:00:30]} 20. Kd2 {[%emt 0:02:14]} Kf8 {[%emt 0:02:28]} 21. Kc3 {[%emt 0:01:10]} Ke7 {[%emt 0:01:03]} 22. Rd6 {[%emt 0:02:19]} Rb8 {[%emt 0:03:02]} 23. Rfd1 {[%emt 0:03:42]} Ra8 {[%emt 0:02:38]} 24. R1d3 {[%emt 0:10:45]} Ra7 {[%emt 0:02:33]} 25. Rg3 {[%emt 0:02:50]} Rg8 {[%emt 0:01:23]} 26. Ne4 {[%emt 0:00:55]} h6 {[%emt 0:01:45]} 27. Nf6 {[%emt 0:00:59]} Kf8 {[%emt 0:05:11]} 28. Nxg8 {[%emt 0:01:30]} Kxg8 {[%emt 0:00:02]} 29. Rgd3 {[%emt 0:00:59]} Kh7 {[%emt 0:03:12]} 30. g4 {[%emt 0:01:25]} Kg6 {[%emt 0:02:14]} 31. h4 {[%emt 0:01:45]} Kh7 {[%emt 0:01:27]} 32. h5 {[%emt 0:06:44]} Kg8 {[%emt 0:02:55]} 33. f5 {[%emt 0:01:06]} Kf8 {[%emt 0:00:23]} 34. f6 {[%emt 0:00:32]} gxf6 {[%emt 0:00:32]} 35. exf6 {[%emt 0:00:05]} Kg8 {[%emt 0:00:40]} 36. Rg3 {[%emt 0:01:18]} Kh7 {[%emt 0:00:24]} 37. g5 {[%emt 0:00:15]} hxg5 {[%emt 0:00:18]} 38. Rxg5 {[%emt 0:00:04]} Kh6 {[%emt 0:00:13]} 39. Rg7 {[%emt 0:00:04]} Kxh5 {[%emt 0:00:19]} 40. Rd2 {[%emt 0:00:09]} Kh6 {[%emt 0:00:05]} 41. Rh2# {[%emt 0:30:04]} 1-0

[Event "Czech Youth U14 Girls 2024"]
[Site "Kouty nad Desnou"]
[Date "2024.03.15"]
[Round "8.2"]
[White "Barteckova, Nikol"]
[Black "Slivova, Linda"]
[Result "0-1"]
[ECO "B01"]
[WhiteElo "1612"]
[BlackElo "1824"]
[Annotator "NA COMBH"]
[PlyCount "86"]
[EventDate "2024.03.10"]
[EventType "swiss"]
[EventCountry "CZE"]
[SourceTitle "playchess.com"]
[Source "ChessBase"]
[SourceQuality "1"]
[TimeControl "40/5400+30:1800+30"]

1. e4 {[%emt 0:00:03]} d5 {[%emt 0:00:08]} 2. exd5 {[%emt 0:00:07]} Qxd5 {[%emt 0:00:09]} 3. Nc3 {[%emt 0:00:19]} Qd6 {[%emt 0:00:13]} 4. d4 {[%emt 0:00:24]} Nf6 {[%emt 0:00:21]} 5. h3 {[%emt 0:04:18]} c6 {[%emt 0:01:42]} 6. Nf3 {[%emt 0:01:02]} Bf5 {[%emt 0:01:06]} 7. Bc4 {[%emt 0:05:39]} e6 {[%emt 0:02:25]} 8. O-O {[%emt 0:11:33]} Nbd7 {[%emt 0:01:45]} 9. Re1 {[%emt 0:04:31]} Be7 {[%emt 0:01:39]} 10. Bd2 {[%emt 0:05:31]} O-O {[%emt 0:02:18]} 11. Qc1 {[%emt 0:08:24]} Nb6 {[%emt 0:10:19]} 12. Bb3 {[%emt 0:02:18]} Nbd5 {[%emt 0:02:31]} 13. Nh4 {[%emt 0:04:04]} Bg6 {[%emt 0:03:21]} 14. Nxg6 {[%emt 0:02:57]} hxg6 {[%emt 0:00:18]} 15. Nxd5 {[%emt 0:01:10]} cxd5 {[%emt 0:02:09]} 16. c3 {[%emt 0:02:04]} b5 {[%emt 0:03:54]} 17. a3 {[%emt 0:01:48]} a5 {[%emt 0:01:21]} 18. Bf4 {[%emt 0:04:52]} Qb6 {[%emt 0:04:18]} 19. Qe3 {[%emt 0:02:24]} b4 {[%emt 0:13:07]} 20. Reb1 {[%emt 0:02:56]} Rfc8 {[%emt 0:03:43]} 21. f3 {[%emt 0:03:10]} Bd6 {[%emt 0:09:19]} 22. Bxd6 {[%emt 0:01:45]} Qxd6 {[%emt 0:00:32]} 23. axb4 {[%emt 0:07:52]} axb4 {[%emt 0:00:31]} 24. Qe1 {[%emt 0:00:55]} Rxa1 {[%emt 0:01:09]} 25. Rxa1 {[%emt 0:00:11]} bxc3 {[%emt 0:00:58]} 26. bxc3 {[%emt 0:00:10]} Qb6 {[%emt 0:03:19]} 27. Ra3 {[%emt 0:01:47]} Ne8 {[%emt 0:04:53]} 28. Qa1 {[%emt 0:02:26]} Nc7 {[%emt 0:07:11]} 29. Bc2 {[%emt 0:03:19]} Nb5 {[%emt 0:03:00]} 30. Ra8 {[%emt 0:01:19]} Qb7 {[%emt 0:01:06]} 31. Rxc8+ {[%emt 0:07:24]} Qxc8 {[%emt 0:00:05]} 32. Kf2 {[%emt 0:02:55]} Qxc3 {[%emt 0:02:27]} 33. Qxc3 {[%emt 0:00:58]} Nxc3 {[%emt 0:00:05]} 34. Ke3 {[%emt 0:00:28]} Nb5 {[%emt 0:01:01]} 35. h4 {[%emt 0:00:56]} Kf8 {[%emt 0:01:37]} 36. f4 {[%emt 0:01:13]} Ke7 {[%emt 0:05:41]} 37. Ba4 {[%emt 0:01:07]} Nd6 {[%emt 0:00:14]} 38. Bb3 {[%emt 0:02:11]} Nf5+ {[%emt 0:01:27]} 39. Kd3 {[%emt 0:00:37]} Nxh4 {[%emt 0:01:56]} 40. g4 {[%emt 0:00:48]} Ng2 {[%emt 0:02:44]} 41. Bc2 {[%emt 0:06:00]} Nxf4+ {[%emt 0:01:04]} 42. Ke3 {[%emt 0:00:12]} g5 {[%emt 0:00:47]} 43. Kf3 {[%emt 0:00:52]} Kd6 {[%emt 0:01:50]} 0-1